fUSD/lending_fUSD_20240227
["ID","MTS","AMOUNT","RATE_DAILY","PERIOD"]
[315439856,1709038245025,-500.0,0.00023028,2]
[315439857,1709038245034,-500.0,0.00023028,2]
[315439858,1709038245046,-500.0,0.00023028,2]
[315439859,1709038245054,-500.0,0.00023028,2]
[315439860,1709038245063,-500.0,0.00023028,2]
[315439861,1709038245073,-500.0,0.00023028,2]
[315439862,1709038245082,-572.45,0.00023028,2]
[315439863,1709038245091,-500.0,0.00023028,2]
[315439865,1709038245101,-500.0,0.00023028,2]
[315439866,1709038245111,-500.0,0.00023028,2]
[315439868,1709038245120,-458.02,0.00023028,2]
[315439870,1709038245130,-500.0,0.00023028,2]
[315439872,1709038245140,-256.13,0.00023028,2]
[315439874,1709038245149,-500.0,0.00023028,2]
[315439876,1709038245158,-150.0,0.00023028,2]
[315439878,1709038245168,-500.0,0.00023028,2]
[315439880,1709038245177,-500.0,0.00023028,2]
[315439882,1709038245186,-500.0,0.00023028,2]
[315439884,1709038245195,-500.0,0.00023028,2]
[315439886,1709038245204,-500.0,0.00023028,2]
[315439888,1709038245212,-500.0,0.00023028,2]
[315439890,1709038245222,-500.0,0.00023028,2]
[315439892,1709038245232,-500.0,0.00023028,2]
[315439894,1709038245241,-500.0,0.00023028,2]
[315439896,1709038245250,-500.0,0.00023028,2]
[315439898,1709038245259,-500.0,0.00023028,2]
[315439900,1709038245268,-500.0,0.00023028,2]
[315439902,1709038245277,-500.0,0.00023028,2]
[315439904,1709038245287,-500.0,0.00023028,2]
[315439906,1709038245296,-500.0,0.00023028,2]
[315439908,1709038245305,-500.0,0.00023028,2]
[315439910,1709038245315,-500.0,0.00023028,2]
[315439912,1709038245323,-500.0,0.00023028,2]
[315439914,1709038245333,-500.0,0.00023028,2]
[315439916,1709038245341,-500.0,0.00023028,2]
[315439918,1709038245350,-500.0,0.00023028,2]
[315439920,1709038245359,-500.0,0.00023028,2]
[315439921,1709038245369,-500.0,0.00023028,2]
[315439922,1709038245380,-500.0,0.00023028,2]
[315439923,1709038245389,-546.02,0.00023028,2]
[315439924,1709038245398,-500.0,0.00023028,2]
[315439925,1709038245409,-500.0,0.00023028,2]
[315439926,1709038245418,-500.0,0.00023028,2]
[315439927,1709038245427,-500.0,0.00023028,2]
[315439928,1709038245436,-500.0,0.00023028,2]
[315439929,1709038245445,-500.0,0.00023028,2]
[315439930,1709038245454,-656.82,0.00023028,2]
[315439931,1709038245463,-307.53477832,0.00023028,2]
[315439932,1709038245473,-1248.77,0.00023028,2]
[315439933,1709038245484,-500.0,0.00023028,2]
[315439935,1709038245493,-500.0,0.00023028,2]
[315439937,1709038245502,-1458.65,0.00023028,2]
[315439939,1709038245511,-657.35,0.00023028,2]
[315439941,1709038245520,-500.0,0.00023028,2]
[315439943,1709038245530,-240.76,0.00023028,2]
[315439945,1709038245541,-500.0,0.00023028,2]
[315439947,1709038245550,-500.0,0.00023028,2]
[315439949,1709038245559,-500.0,0.00023028,2]
[315439951,1709038245569,-1934.57,0.00023028,2]
[315439953,1709038245578,-500.0,0.00023028,2]
[315439955,1709038245587,-500.0,0.00023028,2]
[315439957,1709038245598,-500.0,0.00023028,2]
[315439959,1709038245607,-500.0,0.00023028,2]
[315439961,1709038245616,-500.0,0.00023028,2]
[315439963,1709038245626,-500.0,0.00023028,2]
[315439965,1709038245635,-500.0,0.00023028,2]
[315439967,1709038245644,-500.0,0.00023028,2]
[315439970,1709038245653,-450.36903084,0.00023028,2]
[315439973,1709038245662,-500.0,0.00023028,2]
[315439974,1709038245671,-500.0,0.00023028,2]
[315439976,1709038245680,-456.04,0.00023028,2]
[315439978,1709038245689,-500.0,0.00023028,2]
[315439980,1709038245698,-522.35,0.00023028,2]
[315439982,1709038245707,-500.0,0.00023028,2]
[315439984,1709038245717,-500.0,0.00023028,2]
[315439986,1709038245726,-500.0,0.00023028,2]
[315439988,1709038245735,-500.0,0.00023028,2]
[315439990,1709038245745,-500.0,0.00023028,2]
[315439992,1709038245754,-560.05746512,0.00023028,2]
[315439996,1709038245764,-500.0,0.00023028,2]
[315439999,1709038245773,-208.28,0.00023028,2]
[315440001,1709038245782,-500.0,0.00023028,2]
[315440003,1709038245793,-500.0,0.00023028,2]
[315440004,1709038245802,-500.0,0.00023028,2]
[315440005,1709038245810,-500.0,0.00023028,2]
[315440006,1709038245819,-545.73,0.00023028,2]
[315440007,1709038245829,-500.0,0.00023028,2]
[315440008,1709038245838,-500.0,0.00023028,2]
[315440009,1709038245847,-500.0,0.00023028,2]
[315440010,1709038245855,-500.0,0.00023028,2]
[315440011,1709038245865,-629.95,0.00023028,2]
[315440012,1709038245874,-500.0,0.00023028,2]
[315440013,1709038245883,-29171.33144703,0.00023029,2]
[315440014,1709038245892,-500.0,0.00023029,2]
[315440015,1709038245902,-500.0,0.00023029,2]
[315440016,1709038245911,-500.0,0.00023029,2]
[315440017,1709038245920,-500.0,0.00023029,2]
[315440018,1709038245929,-500.0,0.00023029,2]
[315440019,1709038245938,-500.0,0.00023029,2]
[315440020,1709038245947,-500.0,0.00023029,2]
[315440021,1709038245956,-517.54,0.00023029,2]
[315440022,1709038245966,-500.0,0.00023029,2]
[315440024,1709038245975,-500.0,0.00023029,2]
[315440026,1709038245984,-20065.15192344,0.00023031,2]
[315440027,1709038245992,-150.0,0.00023032,2]
[315440029,1709038246003,-150.0,0.00023035,2]
[315440030,1709038246013,-500.0,0.00023036,2]
[315440032,1709038246022,-500.0,0.00023036,2]
[315440034,1709038246032,-500.0,0.00023036,2]
[315440035,1709038246042,-150.0,0.00023036,2]
[315440037,1709038246052,-567.57,0.00023036,2]
[315440040,1709038246061,-500.0,0.00023036,2]
[315440041,1709038246071,-579.24,0.00023036,2]
[315440043,1709038246080,-500.0,0.00023036,2]
[315440045,1709038246089,-500.0,0.00023036,2]
[315440046,1709038246098,-500.0,0.00023036,2]
[315440048,1709038246108,-500.0,0.00023036,2]
[315440050,1709038246117,-1540.45,0.00023036,2]
[315440051,1709038246126,-500.0,0.00023037,2]
[315440053,1709038246135,-574.25,0.00023037,2]
[315440055,1709038246145,-50000.0,0.00023038,2]
[315440056,1709038246154,-194.16873166,0.00023044,2]
[315440058,1709038246164,-160.57,0.0002305,2]
[315440060,1709038246174,-150.0,0.00023067,2]
[315440062,1709038246183,-194.16873166,0.00023098,2]
[315440063,1709038246192,-210.0,0.00023101,2]
[315440065,1709038246202,-5238.24281368,0.0002313,2]
[315440066,1709038246211,-151.0,0.0002313,7]
[315440068,1709038246221,-259.91802582,0.00023132,2]
[315440070,1709038246230,-156.43,0.00023151,2]
[315440072,1709038246239,-194.16873166,0.00023152,2]
[315440073,1709038246248,-150.0,0.00023158,2]
[315440075,1709038246258,-424.3,0.00023167,2]
[315440077,1709038246267,-206.0,0.0002318,2]
[315440079,1709038246277,-150.0,0.00023185,2]
[315440080,1709038246289,-150.0,0.00023186,2]
[315440082,1709038246298,-500.0,0.00023196,2]
[315440084,1709038246307,-421.7514777,0.00023199,2]
[315440086,1709038246316,-500.0,0.00023199,2]
[315440088,1709038246325,-500.0,0.00023199,2]
[315440089,1709038246335,-500.0,0.00023199,2]
[315440091,1709038246344,-500.0,0.00023199,2]
[315440093,1709038246354,-500.0,0.00023199,2]
[315440094,1709038246363,-500.0,0.00023199,2]
[315440095,1709038246373,-500.0,0.00023199,2]
[315440096,1709038246385,-500.0,0.00023199,2]
[315440097,1709038246394,-500.0,0.00023199,2]
[315440098,1709038246404,-500.0,0.00023199,2]
[315440099,1709038246414,-656.82,0.00023199,2]
[315440100,1709038246424,-657.35,0.00023199,2]
[315440102,1709038246433,-500.0,0.00023199,2]
[315440103,1709038246443,-1934.57,0.00023199,2]
[315440105,1709038246454,-150.0,0.00023199,2]
[315440107,1709038246463,-500.0,0.00023199,2]
[315440109,1709038246474,-500.0,0.00023199,2]
[315440110,1709038246484,-431.6,0.00023199,2]
[315440112,1709038246494,-2905.71774962,0.000232,10]
[315440114,1709038246504,-10443.62282483,0.000232,2]
[315440116,1709038246515,-194.16873166,0.00023206,2]
[315440118,1709038246526,-150.0,0.00023211,2]
[315440120,1709038246540,-300.0,0.00023214,2]
[315440122,1709038246552,-157.68,0.00023233,2]
[315440124,1709038246562,-158.08,0.00023233,2]
[315440125,1709038246572,-150.0,0.00023244,2]
[315440127,1709038246583,-194.16873166,0.0002326,2]
[315440128,1709038246594,-150.0,0.00023264,2]
[315440129,1709038246605,-150.0,0.00023265,2]
[315440130,1709038246615,-150.0,0.00023272,2]
[315440131,1709038246626,-150.0,0.00023283,2]
[315440132,1709038246637,-156.43,0.00023288,2]
[315440133,1709038246647,-150.0,0.00023298,2]
[315440134,1709038246657,-150.0,0.00023302,2]
[315440135,1709038246667,-194.16873166,0.00023314,2]
[315440136,1709038246677,-17285.28904114,0.0002333,2]
[315440137,1709038246687,-177.9,0.00023348,2]
[315440138,1709038246697,-194.16873166,0.00023368,2]
[315440139,1709038246708,-169.74240935,0.00023377,2]
[315440140,1709038246718,-500.0,0.00023377,2]
[315440141,1709038246728,-500.0,0.00023377,2]
[315440142,1709038246739,-1248.77,0.00023377,2]
[315440143,1709038246749,-1458.65,0.00023377,2]
[315440144,1709038246759,-500.0,0.00023377,2]
[315440145,1709038246769,-500.0,0.00023377,2]
[315440146,1709038246779,-1125.707232,0.00023377,7]
[315440147,1709038246792,-1125.707232,0.00023377,7]
[315440148,1709038246802,-500.0,0.00023377,2]
[315440149,1709038246811,-545.73,0.00023377,2]
[315440150,1709038246821,-500.0,0.00023377,2]
[315440151,1709038246830,-500.0,0.00023377,2]
[315440152,1709038246839,-500.0,0.00023378,2]
[315440153,1709038246849,-150.24,0.00023379,2]
[315440154,1709038246858,-162.47,0.00023379,2]
[315440155,1709038246868,-231.50340973,0.00023383,2]
[315440156,1709038246878,-259.91802582,0.00023383,2]
[315440157,1709038246887,-2196.05737152,0.0002339,2]
[315440158,1709038246897,-630.93403695,0.0002339,2]
[315440159,1709038246906,-150.0,0.00023398,2]
[315440160,1709038246915,-150.0,0.00023405,2]
[315440161,1709038246925,-194.16873166,0.00023422,2]
[315440162,1709038246935,-500.0,0.00023425,2]
[315440163,1709038246944,-156.43,0.00023425,2]
[315440164,1709038246953,-162.0992975,0.0002344,2]
[315440165,1709038246963,-206.0,0.0002345,2]
[315440166,1709038246973,-500.0,0.00023452,2]
[315440167,1709038246982,-158.08,0.00023452,2]
[315440168,1709038246992,-150.0,0.00023454,2]
[315440169,1709038247001,-300.0,0.00023461,2]
[315440170,1709038247011,-150.0,0.00023461,2]
[315440171,1709038247021,-183.79,0.0002347,2]
[315440172,1709038247031,-194.16873166,0.00023476,2]
[315440173,1709038247043,-1350.20318897,0.00023479,2]
[315440174,1709038247053,-150.0,0.00023482,2]
[315440175,1709038247063,-686.68919457,0.0002349,2]
[315440176,1709038247074,-2545.19,0.00023499,2]
[315440177,1709038247084,-575.99,0.00023499,2]
[315440178,1709038247093,-897.33,0.00023499,2]
[315440179,1709038247103,-500.0,0.00023499,2]
[315440180,1709038247113,-500.0,0.00023499,2]
[315440181,1709038247123,-793.77,0.00023499,2]
[315440182,1709038247133,-7136.5376122,0.000235,2]
[315440183,1709038247143,-1500.0,0.000235,2]
[315440184,1709038247154,-232.26554754,0.00023501,2]
[315440185,1709038247164,-150.0,0.0002351,2]
[315440186,1709038247174,-1118.27407741,0.0002352,2]
[315440187,1709038247183,-1036.58287018,0.0002352,2]
[315440188,1709038247193,-1050.63923591,0.0002352,2]
[315440189,1709038247203,-1778.41531961,0.0002352,2]
[315440190,1709038247212,-194.16873166,0.0002353,2]
[315440191,1709038247222,-150.0,0.00023534,2]
[315440192,1709038247232,-150.0,0.00023554,2]
[315440193,1709038247242,-1500.0,0.00023554,2]
[315440194,1709038247251,-573.89396954,0.00023561,2]
[315440195,1709038247261,-500.0,0.00023561,2]
[315440196,1709038247270,-500.0,0.00023561,2]
[315440197,1709038247279,-500.0,0.00023561,2]
[315440198,1709038247291,-500.0,0.00023561,2]
[315440199,1709038247301,-500.0,0.00023561,2]
[315440200,1709038247310,-156.43,0.00023562,2]
[315440201,1709038247320,-150.0,0.00023573,2]
[315440202,1709038247330,-150.0,0.00023583,2]
[315440203,1709038247339,-194.16873166,0.00023584,2]
[315440204,1709038247349,-150.0,0.00023599,2]
[315440205,1709038247359,-684.52,0.00023607,2]
[315440206,1709038247370,-300.0,0.00023623,2]
[315440207,1709038247382,-150.0,0.00023627,2]
[315440208,1709038247393,-300.0,0.00023629,2]
[315440209,1709038247404,-338.0,0.00023629,2]
[315440210,1709038247414,-259.91802582,0.00023635,2]
[315440211,1709038247424,-194.16873166,0.00023638,2]
[315440212,1709038247434,-150.0,0.00023643,2]
[315440213,1709038247444,-500.0,0.00023653,2]
[315440214,1709038247454,-150.0,0.00023655,2]
[315440215,1709038247464,-5000.0,0.0002366,2]
[315440216,1709038247474,-300.0,0.00023661,2]
[315440217,1709038247485,-157.68,0.00023671,2]
[315440218,1709038247495,-158.08,0.00023671,2]
[315440219,1709038247505,-150.0,0.00023685,2]
[315440220,1709038247514,-194.16873166,0.00023693,2]
[315440221,1709038247524,-5000.0,0.00023693,2]
[315440222,1709038247534,-156.43,0.00023699,2]
[315440223,1709038247545,-500.0,0.00023699,2]
[315440224,1709038247554,-200.0,0.000237,2]
[315440225,1709038247563,-200.0,0.000237,2]
[315440226,1709038247573,-150.0,0.00023701,2]
[315440227,1709038247583,-150.0,0.00023705,2]
[315440228,1709038247593,-366.64667729,0.00023723,2]
[315440229,1709038247605,-150.0,0.00023724,2]
[315440230,1709038247615,-216.0,0.0002373,2]
[315440231,1709038247625,-217.0,0.0002373,2]
[315440232,1709038247635,-209.0,0.0002373,2]
[315440233,1709038247645,-206.0,0.0002373,2]
[315440234,1709038247655,-150.0,0.00023736,2]
[315440235,1709038247665,-150.24,0.00023744,2]
[315440236,1709038247674,-194.16873166,0.00023747,2]
[315440237,1709038247684,-150.0,0.00023747,2]
[315440238,1709038247694,-150.0,0.00023755,2]
[315440239,1709038247703,-6894.05344456,0.0002376,2]
[315440240,1709038247714,-150.0,0.00023782,2]
[315440241,1709038247724,-166.73460392,0.00023795,2]
[315440242,1709038247734,-2713.18869313,0.00023795,2]
[315440243,1709038247744,-166.53418403,0.00023796,2]
[315440244,1709038247753,-777.84278996,0.00023796,2]
[315440245,1709038247763,-500.0,0.00023796,2]
[315440246,1709038247773,-500.0,0.00023796,2]
[315440247,1709038247783,-500.0,0.00023796,2]
[315440248,1709038247794,-500.0,0.00023796,2]
[315440249,1709038247804,-500.0,0.00023796,2]
[315440250,1709038247814,-586.69838693,0.00023796,2]
[315440251,1709038247823,-178.61447729,0.00023796,2]
[315440252,1709038247833,-500.0,0.00023796,2]
[315440253,1709038247843,-500.0,0.00023796,2]
[315440254,1709038247854,-500.0,0.00023796,2]
[315440255,1709038247864,-497.34293324,0.00023796,2]
[315440256,1709038247875,-267.26982973,0.00023796,2]
[315440257,1709038247885,-500.0,0.00023796,2]
[315440258,1709038247895,-500.0,0.00023796,2]
[315440259,1709038247905,-500.0,0.00023796,2]
[315440260,1709038247915,-2545.19,0.00023796,2]
[315440261,1709038247925,-500.0,0.00023796,2]
[315440262,1709038247935,-605.07,0.00023796,2]
[315440263,1709038247945,-567.57,0.00023796,2]
[315440264,1709038247955,-575.99,0.00023796,2]
[315440265,1709038247964,-500.0,0.00023796,2]
[315440266,1709038247974,-579.24,0.00023796,2]
[315440267,1709038247984,-897.33,0.00023796,2]
[315440268,1709038247994,-500.0,0.00023796,2]
[315440269,1709038248004,-500.0,0.00023796,2]
[315440270,1709038248014,-500.0,0.00023796,2]
[315440271,1709038248023,-559.1,0.00023796,2]
[315440272,1709038248034,-500.0,0.00023796,2]
[315440273,1709038248046,-500.0,0.00023796,2]
[315440274,1709038248055,-793.77,0.00023796,2]
[315440275,1709038248066,-1540.45,0.00023796,2]
[315440276,1709038248076,-500.0,0.00023797,2]
[315440277,1709038248086,-500.0,0.00023797,2]
[315440278,1709038248096,-500.0,0.00023797,2]
[315440279,1709038248106,-500.0,0.00023797,2]
[315440280,1709038248116,-500.0,0.00023797,2]
[315440281,1709038248125,-500.0,0.00023797,2]
[315440282,1709038248135,-500.0,0.00023797,2]
[315440283,1709038248146,-500.0,0.00023797,2]
[315440284,1709038248156,-500.0,0.00023797,2]
[315440285,1709038248166,-500.0,0.00023797,2]
[315440286,1709038248175,-548.0,0.00023797,2]
[315440287,1709038248185,-151.0,0.00023797,7]
[315440288,1709038248194,-500.0,0.00023797,2]
[315440289,1709038248204,-500.0,0.00023797,2]
[315440290,1709038248213,-443.34781017,0.00023797,2]
[315440291,1709038248223,-500.0,0.00023797,2]
[315440292,1709038248233,-500.0,0.00023797,2]
[315440293,1709038248243,-500.0,0.00023797,2]
[315440294,1709038248253,-500.0,0.00023797,2]
[315440295,1709038248263,-500.0,0.00023797,2]
[315440296,1709038248273,-500.0,0.00023797,2]
[315440297,1709038248284,-500.0,0.00023797,2]
[315440298,1709038248295,-500.0,0.00023797,2]
[315440299,1709038248305,-500.0,0.00023797,2]
[315440300,1709038248461,-500.0,0.00023797,2]
[315440301,1709038248472,-500.0,0.00023797,2]
[315440302,1709038248483,-500.0,0.00023797,2]
[315440303,1709038248492,-500.0,0.00023797,2]
[315440304,1709038248503,-500.0,0.00023797,2]
[315440305,1709038248513,-500.0,0.00023797,2]
[315440306,1709038248523,-500.0,0.00023797,2]
[315440307,1709038248534,-313.04,0.00023797,2]
[315440308,1709038248544,-500.0,0.00023797,2]
[315440309,1709038248553,-573.7,0.00023797,2]
[315440310,1709038248563,-500.0,0.00023797,2]
[315440311,1709038248573,-500.0,0.00023797,2]
[315440312,1709038248584,-269.07,0.00023797,2]
[315440313,1709038248595,-500.0,0.00023797,2]
[315440314,1709038248605,-500.0,0.00023797,2]
[315440315,1709038248614,-500.0,0.00023797,2]
[315440316,1709038248624,-500.0,0.00023797,2]
[315440317,1709038248634,-500.0,0.00023797,2]
[315440318,1709038248644,-500.0,0.00023797,2]
[315440319,1709038248654,-500.0,0.00023797,2]
[315440320,1709038248663,-500.0,0.00023797,2]
[315440321,1709038248673,-500.0,0.00023797,2]
[315440322,1709038248683,-500.0,0.00023797,2]
[315440323,1709038248693,-349.76093703,0.00023797,2]
[315440324,1709038248703,-500.0,0.00023797,2]
[315440325,1709038248713,-500.0,0.00023797,2]
[315440326,1709038248723,-500.0,0.00023797,2]
[315440327,1709038248733,-500.0,0.00023797,2]
[315440328,1709038248743,-500.0,0.00023797,2]
[315440329,1709038248753,-500.0,0.00023797,2]
[315440330,1709038248763,-500.0,0.00023797,2]
[315440331,1709038248772,-500.0,0.00023797,2]
[315440332,1709038248783,-419.31,0.00023797,2]
[315440333,1709038248794,-500.0,0.00023797,2]
[315440334,1709038248803,-500.0,0.00023797,2]
[315440335,1709038248812,-500.0,0.00023797,2]
[315440336,1709038248822,-500.0,0.00023797,2]
[315440337,1709038248831,-500.0,0.00023797,2]
[315440338,1709038248841,-339.62942672,0.00023797,2]
[315440339,1709038248850,-500.0,0.00023797,2]
[315440340,1709038248859,-500.0,0.00023797,2]
[315440341,1709038248869,-500.0,0.00023797,2]
[315440342,1709038248879,-500.0,0.00023797,2]
[315440343,1709038248889,-500.0,0.00023797,2]
[315440344,1709038248899,-500.0,0.00023797,2]
[315440345,1709038248908,-500.0,0.00023797,2]
[315440346,1709038248918,-500.0,0.00023797,2]
[315440347,1709038248928,-500.0,0.00023797,2]
[315440348,1709038248937,-500.0,0.00023797,2]
[315440349,1709038248946,-500.0,0.00023797,2]
[315440350,1709038248956,-500.0,0.00023797,2]
[315440351,1709038248965,-304.59569435,0.00023797,2]
[315440352,1709038248975,-500.0,0.00023797,2]
[315440353,1709038248985,-500.0,0.00023797,2]
[315440354,1709038248994,-500.0,0.00023797,2]
[315440355,1709038249004,-649.97,0.00023797,2]
[315440356,1709038249014,-500.0,0.00023797,2]
[315440357,1709038249025,-500.0,0.00023797,2]
[315440358,1709038249034,-500.0,0.00023797,2]
[315440359,1709038249044,-500.0,0.00023797,2]
[315440360,1709038249054,-500.0,0.00023797,2]
[315440361,1709038249063,-500.0,0.00023797,2]
[315440362,1709038249073,-500.0,0.00023797,2]
[315440363,1709038249082,-500.0,0.00023797,2]
[315440364,1709038249092,-500.0,0.00023797,2]
[315440365,1709038249101,-500.0,0.00023797,2]
[315440366,1709038249110,-500.0,0.00023797,2]
[315440367,1709038249119,-656.82,0.00023797,2]
[315440368,1709038249129,-656.82,0.00023797,2]
[315440369,1709038249138,-656.82,0.00023797,2]
[315440370,1709038249147,-656.82,0.00023797,2]
[315440371,1709038249157,-1248.77,0.00023797,2]
[315440372,1709038249166,-1248.77,0.00023797,2]
[315440373,1709038249175,-1248.77,0.00023797,2]
[315440374,1709038249185,-1248.77,0.00023797,2]
[315440375,1709038249194,-1248.77,0.00023797,2]
[315440376,1709038249203,-1248.77,0.00023797,2]
[315440377,1709038249213,-1248.77,0.00023797,2]
[315440378,1709038249223,-1458.65,0.00023797,2]
[315440379,1709038249232,-1458.65,0.00023797,2]
[315440380,1709038249242,-657.35,0.00023797,2]
[315440381,1709038249251,-1458.65,0.00023797,2]
[315440382,1709038249260,-657.35,0.00023797,2]
[315440383,1709038249269,-1458.65,0.00023797,2]
[315440384,1709038249279,-1458.65,0.00023797,2]
[315440385,1709038249288,-657.35,0.00023797,2]
[315440386,1709038249298,-1458.65,0.00023797,2]
[315440387,1709038249307,-657.35,0.00023797,2]
[315440388,1709038249317,-1458.65,0.00023797,2]
[315440389,1709038249326,-536.2,0.00023797,2]
[315440390,1709038249335,-500.0,0.00023797,2]
[315440391,1709038249345,-500.0,0.00023797,2]
[315440392,1709038249355,-269.66,0.00023797,2]
[315440393,1709038249364,-1934.57,0.00023797,2]
[315440394,1709038249374,-1934.57,0.00023797,2]
[315440395,1709038249384,-1934.57,0.00023797,2]
[315440396,1709038249393,-1934.57,0.00023797,2]
[315440397,1709038249405,-572.3,0.00023797,2]
[315440398,1709038249414,-2545.19,0.00023797,2]
[315440399,1709038249424,-2545.19,0.00023797,2]
[315440400,1709038249433,-2545.19,0.00023797,2]
[315440401,1709038249442,-2545.19,0.00023797,2]
[315440402,1709038249452,-567.57,0.00023797,2]
[315440403,1709038249461,-575.99,0.00023797,2]
[315440404,1709038249470,-575.99,0.00023797,2]
[315440405,1709038249480,-575.99,0.00023797,2]
[315440406,1709038249490,-575.99,0.00023797,2]
[315440407,1709038249499,-500.0,0.00023797,2]
[315440408,1709038249509,-579.24,0.00023797,2]
[315440409,1709038249518,-897.33,0.00023797,2]
[315440410,1709038249528,-897.33,0.00023797,2]
[315440411,1709038249538,-897.33,0.00023797,2]
[315440412,1709038249549,-897.33,0.00023797,2]
[315440413,1709038249559,-500.0,0.00023797,2]
[315440414,1709038249569,-500.0,0.00023797,2]
[315440415,1709038249579,-500.0,0.00023797,2]
[315440416,1709038249589,-500.0,0.00023797,2]
[315440417,1709038249599,-500.0,0.00023797,2]
[315440418,1709038249609,-500.0,0.00023797,2]
[315440419,1709038249618,-500.0,0.00023797,2]
[315440420,1709038249628,-500.0,0.00023797,2]
[315440421,1709038249637,-500.0,0.00023797,2]
[315440422,1709038249647,-500.0,0.00023797,2]
[315440423,1709038249657,-500.0,0.00023797,2]
[315440424,1709038249666,-500.0,0.00023797,2]
[315440425,1709038249676,-500.0,0.00023797,2]
[315440426,1709038249685,-256.8,0.00023797,2]
[315440427,1709038249695,-500.0,0.00023797,2]
[315440428,1709038249704,-500.0,0.00023797,2]
[315440429,1709038249713,-500.0,0.00023797,2]
[315440430,1709038249723,-500.0,0.00023797,2]
[315440431,1709038249733,-500.0,0.00023797,2]
[315440432,1709038249743,-500.0,0.00023797,2]
[315440433,1709038249752,-500.0,0.00023797,2]
[315440434,1709038249761,-500.0,0.00023797,2]
[315440435,1709038249771,-500.0,0.00023797,2]
[315440436,1709038249781,-545.73,0.00023797,2]
[315440437,1709038249791,-545.73,0.00023797,2]
[315440438,1709038249801,-545.73,0.00023797,2]
[315440439,1709038249810,-545.73,0.00023797,2]
[315440440,1709038249820,-500.0,0.00023797,2]
[315440441,1709038249829,-545.73,0.00023797,2]
[315440442,1709038249839,-500.0,0.00023797,2]
[315440443,1709038249848,-545.73,0.00023797,2]
[315440444,1709038249858,-500.0,0.00023797,2]
[315440445,1709038249867,-545.73,0.00023797,2]
[315440446,1709038249877,-500.0,0.00023797,2]
[315440447,1709038249886,-500.0,0.00023797,2]
[315440448,1709038249896,-251.6457224,0.00023797,2]
[315440449,1709038249905,-793.77,0.00023797,2]
[315440450,1709038249914,-793.77,0.00023797,2]
[315440451,1709038249925,-793.77,0.00023797,2]
[315440452,1709038249935,-793.77,0.00023797,2]
[315440453,1709038249944,-1540.45,0.00023797,2]
[315440454,1709038249954,-166.66,0.00023797,2]
[315440455,1709038249964,-500.0,0.00023798,2]
[315440456,1709038249974,-500.0,0.00023798,2]
[315440457,1709038249983,-500.0,0.00023798,2]
[315440458,1709038249993,-500.0,0.00023798,2]
[315440459,1709038250002,-500.0,0.00023798,2]
[315440460,1709038250012,-500.0,0.00023798,2]
[315440461,1709038250021,-500.0,0.00023798,2]
[315440462,1709038250031,-500.0,0.00023798,2]